bitfinex/quotes_SOLUSD_20220101
["timestamp","ask_amount","ask_price","bid_price","bid_amount"]
[1641005381912,16.93940424,172.71,172.7,5.65250714]
[1641005384916,15.33080057,172.71,172.7,5.65250714]
[1641005386317,6.64300057,172.71,172.7,5.65250714]
[1641005388419,6.64300057,172.71,172.7,5.91250714]
[1641005388622,0.580642,172.71,172.7,5.91250714]
[1641005389222,1.60860367,172.74,172.7,10.91050714]
[1641005389522,1.60860367,172.76,172.7,11.41050714]
[1641005390123,2.333395,172.76,172.7,11.41050714]
[1641005391623,2.333395,172.76,172.7,20.09340714]
[1641005395130,2.333395,172.76,172.7,11.41050714]
[1641005395332,2.333395,172.76,172.7,10.91050714]
[1641005395629,2.333395,172.76,172.7,6.41250714]
[1641005398133,2.333395,172.76,172.7,15.09560714]
[1641005398334,2.333395,172.76,172.7,6.41250714]
[1641005400336,2.333395,172.76,172.7,5.65250714]
[1641005400945,3.94199867,172.76,172.7,5.65250714]
[1641005401542,1.60860367,172.75,172.7,5.91250714]
[1641005402943,1.60860367,172.75,172.7,6.41250714]
[1641005406849,3.94199867,172.75,172.7,6.41250714]
[1641005408977,2.333395,172.75,172.7,5.65250714]
[1641005410179,2.333395,172.75,172.7,6.15250714]
[1641005410478,2.333395,172.75,172.7,5.91250714]
[1641005410678,2.333395,172.75,172.7,6.41250714]
[1641005412582,2.333395,172.75,172.7,5.91250714]
[1641005413784,2.333395,172.75,172.7,6.41250714]
[1641005413983,2.333395,172.75,172.7,5.91250714]
[1641005414785,3.94199867,172.75,172.7,5.91250714]
[1641005415990,1.60860367,172.74,172.7,5.91250714]
[1641005417288,1.60860367,172.74,172.7,5.65250714]
[1641005417490,1.60860367,172.73,172.7,5.65250714]
[1641005417991,1.60860367,172.72,172.7,5.65250714]
[1641005418590,1.60860367,172.72,172.7,5.91250714]
[1641005418887,6.06235857,172.72,172.7,5.91250714]
[1641005419989,7.67096224,172.72,172.7,5.91250714]
[1641005420990,7.67096224,172.72,172.7,5.65250714]
[1641005421390,8.17096224,172.72,172.7,5.65250714]
[1641005421794,6.56235857,172.72,172.7,5.65250714]
[1641005422992,6.06235857,172.72,172.7,5.65250714]
[1641005423595,14.74965857,172.72,172.7,5.65250714]
[1641005423995,15.24965857,172.72,172.7,5.65250714]
[1641005424494,14.74965857,172.72,172.7,5.65250714]
[1641005430822,15.24965857,172.72,172.7,5.65250714]
[1641005432134,16.85826224,172.72,172.7,5.65250714]
[1641005432326,16.85826224,172.72,172.61,77.1653]
[1641005432527,16.85826224,172.72,172.61,77.4253]
[1641005432728,1.60860367,172.71,172.61,77.4253]
[1641005432927,8.6891,172.69,172.61,77.4253]
[1641005433129,8.6891,172.69,172.62,1.2342]
[1641005433528,8.6891,172.69,172.62,1.4942]
[1641005433727,8.6891,172.69,172.62,1.9942]
[1641005434727,2.87570367,172.71,172.62,1.9942]
[1641005434931,8.6884,172.7,172.62,1.9942]
[1641005435729,8.6884,172.7,172.62,1.4942]
[1641005435930,8.6884,172.7,172.62,1.9942]
[1641005436331,8.6884,172.7,172.62,1.4942]
[1641005436530,8.6884,172.7,172.62,1.9942]
[1641005437636,9.9551,172.71,172.62,1.9942]
[1641005437834,1.2671,172.71,172.62,7.2002]
[1641005438034,1.60860367,172.72,172.62,7.2002]
[1641005438435,2.91100367,172.72,172.62,7.2002]
[1641005438632,1.3024,172.72,172.62,7.2002]
[1641005439437,1.60860367,172.71,172.62,7.2002]
[1641005440042,10.79660367,172.71,172.62,1.4942]
[1641005440240,10.29660367,172.71,172.62,1.9942]
[1641005440441,1.60860367,172.71,172.62,1.9942]
[1641005441040,1.60860367,172.7,172.62,1.9942]
[1641005441641,1.60860367,172.71,172.62,1.9942]
[1641005442641,1.60860367,172.7,172.62,1.9942]
[1641005443443,1.60860367,172.7,172.62,1.7342]
[1641005444444,1.60860367,172.69,172.62,1.7342]
[1641005444842,1.60860367,172.69,172.62,1.9942]
[1641005446246,1.60860367,172.71,172.62,1.9942]
[1641005457957,1.60860367,172.71,172.62,10.681]
[1641005458759,1.60860367,172.72,172.62,10.681]
[1641005459361,1.60860367,172.71,172.62,10.681]
[1641005460979,3.94199867,172.75,172.62,10.681]
[1641005462886,1.60860367,172.74,172.62,10.681]
[1641005463487,1.60860367,172.73,172.62,10.681]
[1641005464687,1.60860367,172.72,172.62,10.681]
[1641005467089,1.60860367,172.71,172.62,10.681]
[1641005471897,3.94199867,172.75,172.62,10.681]
[1641005475797,1.60860367,172.74,172.62,10.681]
[1641005476398,3.94199867,172.75,172.62,10.681]
[1641005480799,3.94199867,172.75,172.62,19.5827]
[1641005481207,3.94199867,172.75,172.62,26.7767]
[1641005481602,3.94199867,172.75,172.62,35.48829453]
[1641005482500,2.333395,172.75,172.62,35.48829453]
[1641005504050,2.333395,172.75,172.62,101.50523068]
[1641005504350,2.333395,172.75,172.62,106.92398111]
[1641005504950,2.333395,172.75,172.65,0.31996125]
[1641005505251,2.333395,172.75,172.71,30.43298278]
[1641005505550,2.333395,172.75,172.71,31.19298278]
[1641005506751,2.333395,172.75,172.73,8.6804]
[1641005506954,2.333395,172.75,172.73,9.4404]
[1641005509154,2.333395,172.75,172.73,9.1804]
[1641005510559,2.333395,172.75,172.73,9.4404]
[1641005511656,2.83100367,172.82,172.73,9.4404]
[1641005512661,11.51320367,172.82,172.73,9.4404]
[1641005516563,11.51320367,172.82,172.73,9.1804]
[1641005517867,1.60860367,172.81,172.74,38.86941673]
[1641005518067,1.60860367,172.81,172.74,39.12941673]
[1641005518268,1.60860367,172.83,172.74,40.87271673]
[1641005518867,3.94199867,172.83,172.74,40.87271673]
[1641005519070,2.333395,172.83,172.74,40.87271673]
[1641005519674,3.583995,172.83,172.74,40.87271673]
[1641005552230,3.583995,172.83,172.74,40.61271673]
[1641005553654,3.583995,172.83,172.74,40.87271673]
[1641005567572,3.583995,172.83,172.74,10.425]
[1641005568175,3.583995,172.83,172.74,9.1817]
[1641005568372,4.083995,172.83,172.74,9.1817]
[1641005568575,3.583995,172.83,172.74,0.5]
[1641005568774,3.583995,172.83,172.72,12.08004553]
[1641005569074,3.583995,172.83,172.72,6.53991129]
[1641005569475,4.083995,172.83,172.72,6.53991129]
[1641005569676,12.765695,172.83,172.73,8.6826]
[1641005569874,12.765695,172.83,172.73,9.1826]
[1641005570074,12.765695,172.83,172.73,9.4426]
[1641005570273,14.37429867,172.83,172.73,9.4426]
[1641005571074,13.87429867,172.83,172.73,9.4426]
[1641005571374,5.19259867,172.83,172.73,9.4426]
[1641005572178,3.583995,172.83,172.73,9.4426]
[1641005572777,12.265695,172.83,172.73,9.4426]
[1641005575280,13.87429867,172.83,172.73,9.4426]
[1641005575682,12.265695,172.83,172.73,9.4426]
[1641005576983,13.87429867,172.83,172.73,9.4426]
[1641005578487,14.37429867,172.83,172.73,0.26]
[1641005578888,14.37429867,172.83,172.71,9.4432]
[1641005579088,1.60860367,172.82,172.71,9.4432]
[1641005579287,8.6833,172.8,172.71,9.4432]
[1641005581812,11.53740367,172.81,172.71,9.4432]
[1641005582916,9.9288,172.81,172.71,9.4432]
[1641005583921,1.246,172.81,172.71,9.4432]
[1641005584920,1.246,172.81,172.75,8.6816]
[1641005585118,1.246,172.81,172.75,8.9416]
[1641005585320,1.246,172.81,172.75,9.4416]
[1641005599373,3.94199867,172.83,172.75,9.4416]
[1641005599975,2.333395,172.83,172.75,9.4416]
[1641005600174,2.333395,172.83,172.75,10.86829368]
[1641005600574,2.333395,172.83,172.75,10.7933]
[1641005614591,2.333395,172.83,172.75,10.5333]
[1641005615995,2.333395,172.83,172.75,10.7933]
[1641005631337,2.333395,172.83,172.75,10.5333]
[1641005632538,2.333395,172.83,172.75,10.7933]
[1641005652601,2.333395,172.83,172.75,10.5333]
[1641005654401,2.333395,172.83,172.75,10.7933]
[1641005664540,2.333395,172.83,172.75,9.4416]
[1641005674051,2.333395,172.83,172.75,9.1816]
[1641005674250,2.333395,172.83,172.67,116.36231177]
[1641005674251,2.833395,172.83,172.74,8.6829]
[1641005674450,2.833395,172.83,172.7,6.0420901]
[1641005674451,4.44199867,172.83,172.7,6.0420901]
[1641005674656,1.3075,172.82,172.7,6.0420901]
[1641005674853,1.8075,172.82,172.7,0.5]
[1641005675053,1.3075,172.82,172.7,0.5]
[1641005675254,8.6846,172.78,172.71,8.684]
[1641005675454,8.6846,172.78,172.71,9.184]
[1641005675955,1.60860367,172.81,172.71,9.184]
[1641005676165,2.10860367,172.81,172.71,9.444]
[1641005676356,1.60860367,172.81,172.71,9.444]
[1641005676557,2.10860367,172.81,172.71,9.444]
[1641005677557,8.6838,172.79,172.71,9.444]
[1641005678058,8.6838,172.79,172.71,9.184]
[1641005679459,8.6838,172.79,172.71,9.444]
[1641005684483,1.35,172.8,172.71,36.98644264]
[1641005684884,1.60860367,172.81,172.71,36.98644264]
[1641005685184,75.5046,172.82,172.71,36.98644264]
[1641005685585,75.5046,172.82,172.72,1.3287]
[1641005685784,75.5046,172.82,172.77,8.6801]
[1641005685988,1.2752,172.84,172.77,9.4401]
[1641005686389,1.2752,172.84,172.77,8.9401]
[1641005686585,1.2752,172.84,172.77,0.26]
[1641005686786,1.2752,172.84,172.77,0.76]
[1641005686986,1.2752,172.84,172.77,0.5]
[1641005687387,9.9564,172.84,172.75,8.682]
[1641005687588,9.9564,172.84,172.75,8.942]
[1641005687792,9.9564,172.84,172.75,9.442]
[1641005689091,12.289795,172.84,172.75,9.442]
[1641005689892,12.289795,172.84,172.75,9.182]
[1641005690390,12.789795,172.84,172.75,0.5]
[1641005690591,12.289795,172.84,172.74,0.5]
[1641005690990,12.289795,172.84,172.72,1.8446]
[1641005691191,12.289795,172.84,172.72,1.3446]
[1641005691393,12.789795,172.84,172.72,2.1046]
[1641005691594,12.789795,172.84,172.74,8.6827]
[1641005691994,12.789795,172.84,172.74,9.4427]
[1641005694196,12.789795,172.84,172.74,9.1827]
[1641005695499,12.789795,172.84,172.74,9.4427]
[1641005696001,12.789795,172.84,172.74,8.9427]
[1641005696601,14.39839867,172.84,172.74,8.9427]
[1641005697399,14.39839867,172.84,172.74,9.4427]
[1641005697600,1.60860367,172.82,172.74,9.4427]
[1641005697802,10.29120367,172.82,172.74,9.4427]
[1641005698199,10.29120367,172.82,172.74,9.1827]
[1641005698399,1.60860367,172.82,172.74,9.1827]
[1641005698798,5.21719867,172.84,172.74,9.1827]
[1641005699399,2.88380367,172.84,172.74,9.4427]
[1641005699628,11.56510367,172.84,172.74,9.4427]
[1641005699802,12.06510367,172.84,172.74,9.4427]
[1641005700302,14.39849867,172.84,172.74,9.4427]
[1641005700701,8.6825,172.82,172.74,9.4427]
[1641005701101,8.6825,172.82,172.74,8.9427]
[1641005701302,8.6825,172.82,172.74,9.4427]
[1641005702103,9.9401,172.82,172.74,9.4427]
[1641005702805,9.9401,172.82,172.74,8.9427]
[1641005703005,11.54870367,172.82,172.74,0.26]
[1641005703205,11.54870367,172.82,172.74,0.76]
[1641005703405,11.54870367,172.82,172.74,0.5]
[1641005703807,11.54870367,172.82,172.73,9.4433]
[1641005704009,12.04870367,172.82,172.73,0.26]
[1641005704509,12.04870367,172.82,172.73,8.6834]
[1641005704708,11.54870367,172.82,172.73,9.1834]
[1641005704906,11.54870367,172.82,172.73,9.4434]
[1641005705308,1.60860367,172.81,172.73,9.4434]
[1641005705909,11.54870367,172.82,172.73,9.4434]
[1641005711312,13.88209867,172.82,172.73,9.4434]
[1641005711513,12.273495,172.82,172.73,9.4434]
[1641005712016,13.88209867,172.82,172.73,9.4434]
[1641005713914,12.273495,172.82,172.73,9.4434]
[1641005715037,13.88209867,172.82,172.73,9.4434]
[1641005716644,13.88209867,172.82,172.73,8.9434]
[1641005716843,13.88209867,172.82,172.73,9.4434]
[1641005717041,5.19959867,172.82,172.74,28.84409385]
[1641005717239,5.19959867,172.82,172.77,8.6805]
[1641005717439,3.94199867,172.82,172.77,14.9315]
[1641005717639,2.333395,172.82,172.77,15.1915]
[1641005721342,1.3252,172.84,172.77,15.1915]
[1641005725947,3.658595,172.84,172.77,15.1915]
[1641005735957,1.3252,172.84,172.77,15.1915]
[1641005737960,3.658595,172.84,172.77,15.1915]
[1641005748668,1.3252,172.84,172.77,15.1915]
[1641005749269,3.658595,172.84,172.77,15.1915]
[1641005750980,3.658595,172.84,172.77,9.4405]
[1641005751575,3.658595,172.84,172.77,9.1805]
[1641005752978,3.658595,172.84,172.77,9.4405]
[1641005761302,3.658595,172.84,172.77,9.1805]
[1641005762501,3.658595,172.84,172.77,9.4405]
[1641005766716,3.658595,172.84,172.77,0.5]
[1641005766916,12.339795,172.84,172.75,1.7358]
[1641005767116,12.839795,172.84,172.75,1.2358]
[1641005767522,12.839795,172.84,172.75,0.5]
[1641005767818,12.839795,172.84,172.7,1.2495]
[1641005767819,14.44839867,172.84,172.7,1.2495]
[1641005768219,1.60860367,172.83,172.7,1.7495]
[1641005768425,8.6832,172.81,172.7,1.7495]
[1641005769319,1.2274,172.8,172.7,10.4331]
[1641005769920,1.2274,172.8,172.7,10.6931]
[1641005770422,1.2274,172.8,172.7,12.11979368]
[1641005770621,9.9107,172.8,172.7,12.11979368]
[1641005771127,9.9107,172.8,172.7,11.85979368]
[1641005771523,10.4107,172.8,172.7,11.85979368]
[1641005771922,9.9107,172.8,172.7,11.85979368]
[1641005772522,9.9107,172.8,172.7,12.11979368]
[1641005773223,1.2274,172.8,172.7,12.11979368]
[1641005781848,1.60860367,172.82,172.7,12.11979368]
[1641005782263,1.3014,172.83,172.7,12.11979368]
[1641005782663,1.3014,172.83,172.7,7.99179385]
[1641005783264,1.3014,172.83,172.71,1.2898]
[1641005783464,1.3014,172.83,172.77,8.6807]
[1641005783666,1.3014,172.83,172.77,15.6367]
[1641005783864,1.3014,172.83,172.77,15.8967]
[1641005784269,1.3014,172.83,172.77,16.3967]
[1641005789577,1.3014,172.83,172.77,7.716]
[1641005789777,1.3014,172.83,172.77,0.76]
[1641005789982,1.3014,172.83,172.74,2.1095]
[1641005790180,1.3014,172.83,172.74,1.6095]
[1641005790383,1.3014,172.83,172.75,1.42669368]
[1641005790682,1.3014,172.83,172.75,1.68669368]
[1641005790879,1.3014,172.83,172.77,8.6803]
[1641005791079,1.3014,172.83,172.77,13.8383]
[1641005791282,1.3014,172.83,172.77,14.3383]
[1641005801714,2.333395,172.84,172.77,14.3383]
[1641005801914,2.333395,172.84,172.78,1.42669368]
[1641005802112,2.333395,172.84,172.81,8.6785]
[1641005802312,2.333395,172.84,172.81,14.5275]
[1641005802511,2.333395,172.84,172.81,15.2875]
[1641005802714,1.60860367,172.9,172.81,15.2875]
[1641005802914,1.60860367,172.9,172.82,1.2458]
[1641005803114,10.28690367,172.9,172.82,10.1842]
[1641005803316,10.28690367,172.9,172.82,10.6842]
[1641005803516,1.60860367,172.89,172.82,10.6842]
[1641005805615,3.94199867,172.89,172.82,10.6842]
[1641005809320,2.333395,172.89,172.82,10.6842]
[1641005809734,1.60860367,172.92,172.82,10.6842]
[1641005809924,1.60860367,172.92,172.82,19.11089368]
[1641005810124,1.60860367,172.93,172.82,19.11089368]
[1641005810926,79.63490367,172.97,172.82,19.11089368]
[1641005811125,88.30980367,172.97,172.82,19.11089368]
[1641005812427,88.30980367,172.97,172.82,10.4242]
[1641005812625,87.4612,172.97,172.82,10.4242]
[1641005813226,1.60860367,172.95,172.82,10.4242]
[1641005813627,1.60860367,172.95,172.83,28.86132482]
[1641005813827,3.94199867,172.95,172.86,8.6763]
[1641005814231,3.94199867,172.95,172.86,9.1763]
[1641005815230,3.94199867,172.95,172.86,9.4363]
[1641005816431,1.60860367,172.93,172.86,9.4363]
[1641005816931,1.60860367,172.92,172.86,9.4363]
[1641005817634,1.60860367,172.93,172.86,9.4363]
[1641005818434,2.333395,172.95,172.86,9.4363]
[1641005818435,3.94199867,172.95,172.86,9.4363]
[1641005818637,3.94199867,172.95,172.86,10.765]
[1641005819034,2.333395,172.95,172.86,10.765]
[1641005823844,2.84980367,172.96,172.86,10.765]
[1641005825147,5.18319867,172.96,172.86,10.765]
[1641005827370,3.574595,172.96,172.86,10.765]
[1641005827975,3.834595,172.96,172.86,9.1763]
[1641005828175,1.60860367,172.95,172.86,8.6763]
[1641005828372,1.60860367,172.95,172.86,0.5]
[1641005828373,2.10860367,172.95,172.86,0.5]
[1641005828574,2.36860367,172.95,172.86,0.5]
[1641005828773,1.2353,172.94,172.86,0.5]
[1641005828973,1.60860367,172.92,172.86,0.5]
[1641005829174,1.60860367,172.92,172.8,30.2727]
[1641005829374,1.60860367,172.92,172.8,30.7727]
[1641005829574,1.60860367,172.92,172.8,31.0327]
[1641005829978,10.28590367,172.92,172.86,8.6773]
[1641005830379,1.60860367,172.91,172.86,9.4373]
[1641005831075,1.60860367,172.92,172.86,9.4373]
[1641005831575,1.60860367,172.92,172.86,0.26]
[1641005831978,1.60860367,172.92,172.8,1.9843]
[1641005832175,1.60860367,172.9,172.8,1.9843]
[1641005832580,10.28690367,172.9,172.84,8.6782]
[1641005832980,10.28690367,172.9,172.84,9.4382]
[1641005833578,10.28690367,172.9,172.84,0.26]
[1641005833979,1.60860367,172.89,172.79,77.41909368]
[1641005834781,1.60860367,172.89,172.84,8.6781]
[1641005834980,1.60860367,172.89,172.84,9.4381]
[1641005835181,1.60860367,172.9,172.84,9.4381]
[1641005835383,1.60860367,172.9,172.84,8.9381]
[1641005835581,1.60860367,172.9,172.84,0.26]
[1641005835781,1.60860367,172.9,172.8,0.76]
[1641005835982,1.60860367,172.9,172.81,8.6794]
[1641005836181,1.60860367,172.9,172.8,0.5]
[1641005836382,1.60860367,172.9,172.79,2.18669368]
[1641005836582,1.60860367,172.9,172.8,1.42669368]
[1641005836781,3.94199867,172.9,172.8,1.42669368]
[1641005836982,4.44199867,172.9,172.8,2.18669368]
[1641005837381,12.62039867,172.9,172.82,8.6788]
[1641005837581,12.62039867,172.9,172.82,8.9388]
[1641005837781,12.62039867,172.9,172.82,9.4388]
[1641005839982,12.62039867,172.9,172.82,8.6788]
[1641005840381,13.12039867,172.9,172.82,9.1788]
[1641005840586,12.62039867,172.9,172.79,1.3385]
[1641005840783,12.62039867,172.9,172.81,8.6796]
[1641005840983,13.12039867,172.9,172.81,8.6796]
[1641005841184,12.62039867,172.9,172.81,9.1796]
[1641005841386,13.12039867,172.9,172.81,9.4396]
[1641005841784,1.60860367,172.89,172.81,9.4396]
[1641005841984,10.28730367,172.89,172.81,9.4396]
[1641005843387,11.62390367,172.89,172.81,9.4396]
[1641005843888,10.0153,172.89,172.81,9.4396]
[1641005845088,1.3366,172.89,172.81,9.4396]
[1641005845990,1.3066,172.89,172.81,9.4396]
[1641005847591,3.639995,172.89,172.81,9.4396]
[1641005847793,3.639995,172.89,172.81,8.6796]
[1641005847995,3.639995,172.89,172.76,7.46648713]
[1641005848197,8.6796,172.81,172.77,8.6813]
[1641005848397,8.6796,172.81,172.73,6.03908055]
[1641005848593,8.6796,172.81,172.7,83.02385376]
[1641005848794,8.6796,172.81,172.7,76.9828]
[1641005848995,9.1796,172.81,172.7,76.9828]
[1641005849695,9.1796,172.81,172.7,77.4828]
[1641005850401,9.1796,172.81,172.7,76.9828]
[1641005850601,17.8625,172.81,172.7,76.9828]
[1641005850803,19.1996,172.81,172.7,76.9828]
[1641005851007,19.1996,172.81,172.7,77.2428]
[1641005851202,20.80820367,172.81,172.7,77.2428]
[1641005851401,20.80820367,172.81,172.7,77.7428]
[1641005852600,1.60860367,172.8,172.7,77.7428]
[1641005852801,8.6846,172.78,172.7,77.7428]
[1641005853000,8.6846,172.78,172.7,0.76]
[1641005853422,8.6846,172.78,172.69,8.9445]
[1641005853602,8.6846,172.78,172.69,9.4445]
[1641005854001,8.6846,172.78,172.69,8.9445]
[1641005855603,9.1846,172.78,172.69,8.9445]
[1641005855806,8.6846,172.78,172.69,8.9445]
[1641005857807,8.6846,172.78,172.69,9.4445]
[1641005858306,8.6846,172.78,172.69,8.9445]
[1641005858517,8.6846,172.78,172.68,1.2539]
[1641005858712,9.1846,172.78,172.66,75.439]
[1641005858913,9.4446,172.78,172.66,75.439]
[1641005859211,11.05320367,172.78,172.66,75.439]
[1641005859413,13.38659867,172.78,172.66,75.439]
[1641005860113,1.2936,172.77,172.66,75.699]
[1641005860310,8.6865,172.75,172.66,75.699]
[1641005860935,8.6865,172.75,172.66,76.199]
[1641005861142,8.6865,172.75,172.66,75.699]
[1641005861935,9.1865,172.75,172.66,75.699]
[1641005867042,9.1865,172.75,172.65,9.949]
[1641005867246,9.1865,172.75,172.63,8.6868]
[1641005867447,11.05510367,172.75,172.61,0.5]
[1641005867643,8.6884,172.71,172.61,0.5]
[1641005867843,9.1884,172.71,172.59,74.7837]
[1641005868244,8.6884,172.71,172.6,8.6885]
[1641005868443,1.2612,172.7,172.6,9.1885]
[1641005868643,1.2612,172.7,172.6,9.4485]
[1641005869446,1.2612,172.7,172.61,1.3254]
[1641005869645,1.2612,172.7,172.61,10.0129]
[1641005869847,1.2612,172.7,172.61,10.7729]
[1641005870046,1.2612,172.7,172.61,10.2729]
[1641005870249,1.2612,172.7,172.61,10.7729]
[1641005872349,1.7612,172.7,172.61,10.2729]
[1641005872752,1.7612,172.7,172.61,10.7729]
[1641005873051,1.2612,172.7,172.61,10.7729]
[1641005876356,1.60860367,172.73,172.61,10.7729]
[1641005876553,2.93780367,172.73,172.61,10.7729]
[1641005876956,1.3292,172.73,172.61,10.7729]
[1641005877556,2.93780367,172.73,172.61,10.7729]
[1641005878156,1.3292,172.73,172.61,10.7729]
[1641005878558,2.93780367,172.73,172.61,10.7729]
[1641005879158,1.3292,172.73,172.61,10.7729]
[1641005880085,10.0166,172.73,172.61,10.7729]
[1641005880282,10.5166,172.73,172.61,10.7729]
[1641005880485,12.12520367,172.73,172.61,10.7729]
[1641005882785,12.12520367,172.73,172.61,8.9475]
[1641005882985,12.12520367,172.73,172.61,0.26]
[1641005882986,12.38520367,172.73,172.61,0.26]
[1641005883386,1.60860367,172.72,172.59,83.7323]
[1641005883586,8.6891,172.7,172.59,83.7323]
[1641005883986,9.1891,172.7,172.59,83.7323]
[1641005884387,1.2907,172.69,172.59,83.7323]
[1641005886187,1.2907,172.69,172.6,1.3072]
[1641005886389,1.2907,172.69,172.6,1.8072]
[1641005886686,1.2907,172.69,172.6,2.0672]
[1641005888187,3.624095,172.69,172.6,10.7557]
[1641005893097,2.333395,172.69,172.6,17.4297]
[1641005893296,2.333395,172.69,172.6,18.85639368]
[1641005893495,2.333395,172.69,172.6,24.65129006]
[1641005897802,2.333395,172.69,172.6,24.39129006]
[1641005898000,2.333395,172.69,172.6,17.1697]
[1641005898200,2.333395,172.69,172.6,10.4957]
[1641005899206,2.333395,172.69,172.6,10.7557]
[1641005909217,2.333395,172.69,172.6,12.18239368]
[1641005909418,0.003395,172.69,172.6,92.76329349]
[1641005909617,0.003395,172.69,172.6,102.48411853]
[1641005910016,0.003395,172.69,172.6,44.66411853]
[1641005910520,0.003395,172.69,172.65,8.6815]
[1641005910718,0.003395,172.69,172.65,15.2065]
[1641005910917,0.003395,172.69,172.66,1.42669368]
[1641005911118,0.003395,172.69,172.66,1.68669368]
[1641005911323,0.003395,172.69,172.67,1.2892]
[1641005911519,8.6796,172.81,172.74,8.6802]
[1641005911719,8.6796,172.81,172.74,14.9112]
[1641005911919,8.6796,172.81,172.75,29.19104709]
[1641005912124,8.6796,172.81,172.75,29.45104709]
[1641005912318,8.6796,172.81,172.75,29.95104709]
[1641005912519,11.012995,172.81,172.75,29.95104709]
[1641005912724,11.012995,172.81,172.78,8.6794]
[1641005912919,11.012995,172.81,172.78,9.1794]
[1641005913221,11.012995,172.81,172.78,9.4394]
[1641005920030,11.012995,172.81,172.78,9.1794]
[1641005920233,11.012995,172.81,172.77,8.6803]
[1641005920631,11.012995,172.81,172.7,1.2311]
[1641005920836,11.012995,172.81,172.7,1.7311]
[1641005921254,11.012995,172.81,172.75,8.6813]
[1641005921454,11.012995,172.81,172.75,9.1813]
[1641005921854,11.012995,172.81,172.75,9.4413]
[1641005922659,8.6796,172.81,172.75,9.4413]
[1641005923561,8.6796,172.81,172.75,8.9413]
[1641005923758,8.6796,172.81,172.75,0.26]
[1641005924157,8.6796,172.81,172.73,9.442]
[1641005924158,11.012995,172.81,172.73,9.442]
[1641005926759,12.62159867,172.81,172.73,9.442]
[1641005929363,13.12159867,172.81,172.73,9.442]
[1641005930163,12.62159867,172.81,172.73,9.442]
[1641005930567,12.62159867,172.81,172.73,8.942]
[1641005930768,13.12159867,172.81,172.73,8.942]
[1641005930970,12.62159867,172.81,172.73,8.942]
[1641005931370,13.12159867,172.81,172.73,8.942]
[1641005931766,21.30429867,172.81,172.73,0.26]
[1641005931965,21.30429867,172.81,172.72,9.4427]
[1641005932465,21.80429867,172.81,172.72,9.4427]
[1641005933966,21.30429867,172.81,172.72,9.4427]
[1641005934166,12.62159867,172.81,172.72,9.4427]
[1641005934367,13.12159867,172.81,172.72,9.4427]
[1641005934767,12.62159867,172.81,172.72,9.4427]
[1641005935368,13.12159867,172.81,172.72,9.4427]
[1641005935567,12.62159867,172.81,172.72,9.4427]
[1641005937368,11.012995,172.81,172.72,9.4427]
[1641005947399,11.512995,172.81,172.72,9.4427]
[1641005949401,11.012995,172.81,172.72,9.4427]
[1641005954011,11.012995,172.81,172.73,1.42669368]
[1641005954208,11.012995,172.81,172.77,8.6798]
[1641005954407,11.012995,172.81,172.77,9.1798]
[1641005954610,11.012995,172.81,172.77,9.4398]
[1641005956914,11.012995,172.81,172.77,0.76]
[1641005957115,11.012995,172.81,172.77,0.5]
[1641005957314,11.012995,172.81,172.76,8.9403]
[1641005957315,11.012995,172.81,172.76,9.4403]
[1641005957615,11.012995,172.81,172.76,0.76]
[1641005958015,11.012995,172.81,172.75,8.6809]
[1641005958417,11.012995,172.81,172.75,9.4409]
[1641005965022,11.012995,172.81,172.75,0.76]
[1641005965522,11.012995,172.81,172.74,2.0234]
[1641005965725,11.012995,172.81,172.74,1.5234]
[1641005965924,11.012995,172.81,172.74,2.0234]
[1641005966123,11.012995,172.81,172.74,1.7634]
[1641005966522,8.6796,172.81,172.74,1.7634]
[1641005967424,8.6796,172.81,172.74,2.0234]
[1641005967924,11.012995,172.81,172.74,2.0234]
[1641005972525,11.012995,172.81,172.74,1.7634]